[Event "*** Titled Tuesday Blitz"]
[Site "Chess.com"]
[Date "2018.08.07"]
[Round "7"]
[White "TBergh98"]
[Black "ShadowJolteon"]
[Result "0-1"]
[WhiteElo "2046"]
[BlackElo "2219"]
[TimeControl "180+2"]
[EndTime "14:31:51 PDT"]
[Termination "ShadowJolteon won by resignation"]

1. Nf3 {[%clk 0:03:01.9]} 1... Nf6 {[%clk 0:02:53.3]} 2. c4 {[%clk 0:03:02.5]}
2... e6 {[%clk 0:02:53.7]} 3. g3 {[%clk 0:03:02.4]} 3... d5 {[%clk 0:02:55.6]}
4. Bg2 {[%clk 0:03:01.6]} 4... Be7 {[%clk 0:02:55.1]} 5. O-O {[%clk 0:03:02.1]}
5... O-O {[%clk 0:02:53.7]} 6. cxd5 {[%clk 0:03:02.1]} 6... exd5 {[%clk
0:02:53.2]} 7. b3 {[%clk 0:03:00.8]} 7... c6 {[%clk 0:02:46.1]} 8. Bb2 {[%clk
0:03:02.1]} 8... Bf5 {[%clk 0:02:41.5]} 9. d3 {[%clk 0:03:02.8]} 9... Re8 {[%clk
0:02:39.1]} 10. Nbd2 {[%clk 0:02:52.7]} 10... Nbd7 {[%clk 0:02:39.9]} 11. Rc1
{[%clk 0:02:51.6]} 11... h6 {[%clk 0:02:37.1]} 12. Qc2 {[%clk 0:02:52.4]} 12...
Bb4 {[%clk 0:02:29.4]} 13. a3 {[%clk 0:02:52.1]} 13... Bd6 {[%clk 0:02:21.4]}
14. Rfe1 {[%clk 0:02:51.5]} 14... Ne5 {[%clk 0:02:13.6]} 15. b4 {[%clk
0:02:41.9]} 15... Nxf3+ {[%clk 0:02:10.2]} 16. Bxf3 {[%clk 0:02:41.1]} 16... Bg6
{[%clk 0:02:01.4]} 17. e4 {[%clk 0:02:38]} 17... Be5 {[%clk 0:02:01.3]} 18. d4
{[%clk 0:02:28.3]} 18... Bd6 {[%clk 0:01:57.4]} 19. Bg2 {[%clk 0:02:23.5]} 19...
a5 {[%clk 0:01:55.5]} 20. f4 {[%clk 0:02:20.1]} 20... Nxe4 {[%clk 0:01:52.7]}
21. Nxe4 {[%clk 0:02:22]} 21... axb4 {[%clk 0:01:47]} 22. axb4 {[%clk
0:01:30.4]} 22... Bxb4 {[%clk 0:01:48]} 23. Re2 {[%clk 0:01:31.7]} 23... dxe4
{[%clk 0:01:42]} 24. Bxe4 {[%clk 0:01:33.6]} 24... Bxe4 {[%clk 0:01:38.5]} 25.
Rxe4 {[%clk 0:01:35.5]} 25... Qd5 {[%clk 0:01:35.5]} 26. Re5 {[%clk 0:01:16.3]}
26... Qf3 {[%clk 0:01:15.8]} 27. Ra1 {[%clk 0:01:08.7]} 27... f6 {[%clk
0:01:09.2]} 28. Rxe8+ {[%clk 0:01:03.6]} 28... Rxe8 {[%clk 0:01:05.7]} 29. Qc4+
{[%clk 0:01:04.9]} 29... Kh7 {[%clk 0:00:56.2]} 30. Qxb4 {[%clk 0:01:06]} 30...
Re2 {[%clk 0:00:53.5]} 0-1

[Event "*** Titled Tuesday Blitz"]
[Site "Chess.com"]
[Date "2018.08.07"]
[Round "7"]
[White "nihalsarin"]
[Black "RitvarsReimanis"]
[Result "1-0"]
[WhiteElo "2754"]
[BlackElo "2441"]
[TimeControl "180+2"]
[EndTime "14:32:06 PDT"]
[Termination "nihalsarin won by resignation"]

1. e4 {[%clk 0:03:01.9]} 1... c5 {[%clk 0:03:00.3]} 2. Nf3 {[%clk 0:03:02.7]}
2... Nc6 {[%clk 0:03:01.4]} 3. d4 {[%clk 0:03:03.4]} 3... cxd4 {[%clk
0:03:02.5]} 4. Nxd4 {[%clk 0:03:05.3]} 4... Nf6 {[%clk 0:03:03.3]} 5. Nc3 {[%clk
0:03:05.9]} 5... d6 {[%clk 0:03:04.4]} 6. Bg5 {[%clk 0:03:05.7]} 6... e6 {[%clk
0:03:05.5]} 7. Qd2 {[%clk 0:03:06.5]} 7... a6 {[%clk 0:03:06.9]} 8. O-O-O {[%clk
0:03:07.6]} 8... Bd7 {[%clk 0:03:08.3]} 9. f3 {[%clk 0:03:08.4]} 9... h6 {[%clk
0:03:09.6]} 10. Be3 {[%clk 0:03:09.6]} 10... Rc8 {[%clk 0:03:10.7]} 11. Kb1
{[%clk 0:03:10.4]} 11... Qa5 {[%clk 0:03:11.4]} 12. Nxc6 {[%clk 0:03:11.4]}
12... Rxc6 {[%clk 0:03:07.9]} 13. Nd5 {[%clk 0:03:05.7]} 13... Qxd2 {[%clk
0:03:07.8]} 14. Nxf6+ {[%clk 0:03:07.1]} 14... gxf6 {[%clk 0:03:09.6]} 15. Rxd2
{[%clk 0:03:08.3]} 15... h5 {[%clk 0:03:09.4]} 16. h4 {[%clk 0:03:04.7]} 16...
b5 {[%clk 0:03:00.6]} 17. a4 {[%clk 0:02:46.2]} 17... bxa4 {[%clk 0:02:53.4]}
18. Rd4 {[%clk 0:02:46]} 18... Rb6 {[%clk 0:02:25.6]} 19. Rxa4 {[%clk 0:02:34]}
19... Rxb2+ {[%clk 0:02:25.9]} 20. Kxb2 {[%clk 0:02:35.9]} 20... Bxa4 {[%clk
0:02:27.5]} 21. Bxa6 {[%clk 0:02:37.8]} 21... Rg8 {[%clk 0:02:28.8]} 22. Ra1
{[%clk 0:02:37.3]} 22... Bc6 {[%clk 0:02:27.5]} 23. Bf1 {[%clk 0:02:36.5]} 23...
Be7 {[%clk 0:02:18]} 24. Ra6 {[%clk 0:01:58.6]} 24... Kd7 {[%clk 0:01:56.6]} 25.
Ra7+ {[%clk 0:01:57.6]} 25... Ke8 {[%clk 0:01:57.9]} 26. Bb6 {[%clk 0:01:58.6]}
26... f5 {[%clk 0:01:48.5]} 27. exf5 {[%clk 0:01:47.8]} 27... exf5 {[%clk
0:01:48.8]} 28. Bb5 {[%clk 0:01:48]} 28... Bf6+ {[%clk 0:01:43.8]} 29. Kc1
{[%clk 0:01:46.6]} 29... Rxg2 {[%clk 0:01:33.2]} 30. Bxc6+ {[%clk 0:01:45.8]}
30... Kf8 {[%clk 0:01:34.5]} 31. Bd5 {[%clk 0:01:45.9]} 31... Bc3 {[%clk
0:01:28.3]} 32. Rxf7+ {[%clk 0:01:45.3]} 32... Ke8 {[%clk 0:01:29.6]} 33. Rxf5
{[%clk 0:01:44.4]} 33... Rh2 {[%clk 0:01:29.2]} 34. Kb1 {[%clk 0:01:37.3]} 34...
Rxh4 {[%clk 0:01:28.9]} 35. Be3 {[%clk 0:01:19.9]} 35... Rb4+ {[%clk 0:01:28.7]}
36. Bb3 {[%clk 0:01:20.1]} 36... Rh4 {[%clk 0:01:25.5]} 37. Bf7+ {[%clk
0:01:13.2]} 37... Kd7 {[%clk 0:01:24.2]} 38. Rxh5 {[%clk 0:01:14.6]} 38... Ra4
{[%clk 0:01:21.7]} 39. Ba2 {[%clk 0:01:11.7]} 39... Rb4+ {[%clk 0:01:19.4]} 40.
Bb3 {[%clk 0:01:12.3]} 40... Rb8 {[%clk 0:01:18.9]} 41. Kc1 {[%clk 0:01:11.4]}
41... Re8 {[%clk 0:01:15]} 42. Ba4+ {[%clk 0:01:11.8]} 1-0

[Event "*** Titled Tuesday Blitz"]
[Site "Chess.com"]
[Date "2018.08.07"]
[Round "7"]
[White "AlanZhang"]
[Black "FearNoEvil12"]
[Result "1-0"]
[WhiteElo "1946"]
[BlackElo "1948"]
[TimeControl "180+2"]
[EndTime "14:32:21 PDT"]
[Termination "AlanZhang won by checkmate"]

1. e4 {[%clk 0:03:01.9]} 1... a6 {[%clk 0:02:59.6]} 2. d4 {[%clk 0:03:01.8]}
2... b5 {[%clk 0:03:00.9]} 3. a4 {[%clk 0:02:39.4]} 3... b4 {[%clk 0:03:00.1]}
4. c3 {[%clk 0:02:38.4]} 4... e6 {[%clk 0:02:59.6]} 5. Nf3 {[%clk 0:02:37.8]}
5... Bb7 {[%clk 0:02:59.6]} 6. Bd3 {[%clk 0:02:38.5]} 6... Nf6 {[%clk 0:03:00]}
7. Qe2 {[%clk 0:02:38.6]} 7... bxc3 {[%clk 0:02:58.6]} 8. bxc3 {[%clk
0:02:35.3]} 8... d6 {[%clk 0:03:00]} 9. Ba3 {[%clk 0:02:35.2]} 9... Nbd7 {[%clk
0:02:59.7]} 10. Nbd2 {[%clk 0:02:33.9]} 10... h6 {[%clk 0:02:58.2]} 11. O-O
{[%clk 0:02:29.8]} 11... g5 {[%clk 0:02:58.2]} 12. Rab1 {[%clk 0:02:08.9]} 12...
Rb8 {[%clk 0:02:57.4]} 13. Bxa6 {[%clk 0:02:05.5]} 13... Bxa6 {[%clk 0:02:52.1]}
14. Qxa6 {[%clk 0:02:07.4]} 14... Ra8 {[%clk 0:02:45.2]} 15. Qc6 {[%clk
0:02:05.5]} 15... g4 {[%clk 0:02:46]} 16. Ne1 {[%clk 0:01:43.1]} 16... Qc8
{[%clk 0:02:04.7]} 17. Rb7 {[%clk 0:01:37.1]} 17... Kd8 {[%clk 0:02:04.6]} 18.
Nd3 {[%clk 0:01:19.4]} 18... h5 {[%clk 0:01:57.5]} 19. Rfb1 {[%clk 0:01:04.6]}
19... Be7 {[%clk 0:01:49.9]} 20. Rxc7 {[%clk 0:01:03.1]} 20... Qxc7 {[%clk
0:01:47.4]} 21. Qxa8+ {[%clk 0:01:03.5]} 21... Qc8 {[%clk 0:01:41]} 22. Qxc8+
{[%clk 0:00:54.1]} 22... Kxc8 {[%clk 0:01:40.9]} 23. e5 {[%clk 0:00:54]} 23...
Ne8 {[%clk 0:01:41.5]} 24. Nc4 {[%clk 0:00:50.4]} 24... Kc7 {[%clk 0:01:38.6]}
25. a5 {[%clk 0:00:34.2]} 25... Nb8 {[%clk 0:01:19.1]} 26. Rb6 {[%clk
0:00:23.3]} 26... Nc6 {[%clk 0:01:06]} 27. a6 {[%clk 0:00:19.7]} 27... d5 {[%clk
0:00:47]} 28. Rb7+ {[%clk 0:00:18.6]} 28... Kc8 {[%clk 0:00:48]} 29. Nb6+ {[%clk
0:00:19.3]} 29... Kd8 {[%clk 0:00:46.1]} 30. Rd7# {[%clk 0:00:21.2]} 1-0

[Event "*** Titled Tuesday Blitz"]
[Site "Chess.com"]
[Date "2018.08.07"]
[Round "7"]
[White "Mimsychess"]
[Black "juniortay"]
[Result "0-1"]
[WhiteElo "2274"]
[BlackElo "2409"]
[TimeControl "180+2"]
[EndTime "14:32:26 PDT"]
[Termination "juniortay won on time"]

1. e4 {[%clk 0:02:46]} 1... e5 {[%clk 0:03:00.6]} 2. Nf3 {[%clk 0:02:45.7]} 2...
Nf6 {[%clk 0:03:02.1]} 3. Nxe5 {[%clk 0:02:42.9]} 3... Nc6 {[%clk 0:03:03.3]} 4.
Nxc6 {[%clk 0:02:40.6]} 4... dxc6 {[%clk 0:03:05.2]} 5. d3 {[%clk 0:02:40.5]}
5... Bc5 {[%clk 0:03:06.2]} 6. Be2 {[%clk 0:02:40.6]} 6... h5 {[%clk 0:03:06.4]}
7. O-O {[%clk 0:02:34.3]} 7... Ng4 {[%clk 0:03:06.5]} 8. Bxg4 {[%clk 0:02:12.2]}
8... hxg4 {[%clk 0:03:05.9]} 9. Bf4 {[%clk 0:02:13.1]} 9... Be6 {[%clk 0:03:05]}
10. c3 {[%clk 0:02:05.6]} 10... Qd7 {[%clk 0:02:54.3]} 11. d4 {[%clk 0:02:05.1]}
11... O-O-O {[%clk 0:02:52.6]} 12. Nd2 {[%clk 0:02:03.8]} 12... Bd6 {[%clk
0:02:49.3]} 13. e5 {[%clk 0:02:00.2]} 13... Be7 {[%clk 0:02:48.7]} 14. Ne4
{[%clk 0:01:59.7]} 14... Rh5 {[%clk 0:02:39.5]} 15. b4 {[%clk 0:01:34.2]} 15...
Rdh8 {[%clk 0:02:37.7]} 16. Qa4 {[%clk 0:01:32.7]} 16... a6 {[%clk 0:02:26]} 17.
Nc5 {[%clk 0:01:28.8]} 17... Bxc5 {[%clk 0:02:20.1]} 18. bxc5 {[%clk 0:01:30.7]}
18... Qd5 {[%clk 0:02:06.2]} 19. Rfb1 {[%clk 0:01:22.4]} 19... Qe4 {[%clk
0:02:03.9]} 20. Bg3 {[%clk 0:01:21.9]} 20... Bd5 {[%clk 0:02:04.1]} 21. f3
{[%clk 0:01:22.6]} 21... gxf3 {[%clk 0:02:05.2]} 22. Rf1 {[%clk 0:01:11.4]}
22... fxg2 {[%clk 0:01:48.5]} 23. Rfe1 {[%clk 0:00:11.7]} 23... Qf3 {[%clk
0:01:47.1]} 24. c4 {[%clk 0:00:10.6]} 24... Be4 {[%clk 0:01:36.9]} 25. Qd1
{[%clk 0:00:10.8]} 25... Qf5 {[%clk 0:01:29.2]} 26. Qe2 {[%clk 0:00:06.9]} 26...
Bf3 {[%clk 0:01:29.5]} 27. Qe3 {[%clk 0:00:05.2]} 27... g5 {[%clk 0:01:18]} 28.
d5 {[%clk 0:00:04]} 28... Rh3 {[%clk 0:01:13.3]} 29. e6 {[%clk 0:00:03.1]} 29...
fxe6 {[%clk 0:01:11]} 0-1

[Event "*** Titled Tuesday Blitz"]
[Site "Chess.com"]
[Date "2018.08.07"]
[Round "7"]
[White "narutosmith"]
[Black "Passacaglia23"]
[Result "0-1"]
[WhiteElo "2105"]
[BlackElo "2268"]
[TimeControl "180+2"]
[EndTime "14:32:28 PDT"]
[Termination "Passacaglia23 won by resignation"]

1. e4 {[%clk 0:03:00.2]} 1... c6 {[%clk 0:02:58.9]} 2. d4 {[%clk 0:03:00.9]}
2... d5 {[%clk 0:03:00.8]} 3. e5 {[%clk 0:03:02]} 3... Bf5 {[%clk 0:03:01.5]} 4.
Nd2 {[%clk 0:03:03.3]} 4... e6 {[%clk 0:02:53.8]} 5. Nb3 {[%clk 0:03:03.8]} 5...
Nd7 {[%clk 0:02:51.2]} 6. Nf3 {[%clk 0:03:04.3]} 6... h6 {[%clk 0:02:49.8]} 7.
Be2 {[%clk 0:03:05]} 7... Ne7 {[%clk 0:02:51.3]} 8. O-O {[%clk 0:03:01.7]} 8...
g5 {[%clk 0:02:52.7]} 9. a4 {[%clk 0:03:00.9]} 9... a5 {[%clk 0:02:53.8]} 10.
Ne1 {[%clk 0:02:57.2]} 10... Qc7 {[%clk 0:02:54.5]} 11. Nd3 {[%clk 0:02:57]}
11... b6 {[%clk 0:02:55.9]} 12. f4 {[%clk 0:02:54.4]} 12... c5 {[%clk 0:02:54]}
13. dxc5 {[%clk 0:02:32.7]} 13... bxc5 {[%clk 0:02:53.6]} 14. Ne1 {[%clk
0:02:33.9]} 14... gxf4 {[%clk 0:02:41.1]} 15. Bxf4 {[%clk 0:02:33.2]} 15... Ng6
{[%clk 0:02:41.3]} 16. Bb5 {[%clk 0:02:20.2]} 16... Nxf4 {[%clk 0:02:35.8]} 17.
Rxf4 {[%clk 0:02:20.9]} 17... Qxe5 {[%clk 0:02:24.7]} 18. Qf3 {[%clk 0:02:01.4]}
18... Bd6 {[%clk 0:02:04.5]} 19. Bxd7+ {[%clk 0:01:31.4]} 19... Kxd7 {[%clk
0:02:04.9]} 20. Nd3 {[%clk 0:01:32.5]} 20... Bxd3 {[%clk 0:01:13.8]} 21. Rxf7+
{[%clk 0:01:31.7]} 21... Kc6 {[%clk 0:00:46.2]} 22. cxd3 {[%clk 0:01:32.1]}
22... Qxh2+ {[%clk 0:00:46.7]} 23. Kf1 {[%clk 0:01:33]} 23... Rhf8 {[%clk
0:00:39.6]} 24. Nd4+ {[%clk 0:00:52.2]} 24... cxd4 {[%clk 0:00:37]} 25. Rc1+
{[%clk 0:00:49.9]} 25... Kb6 {[%clk 0:00:33.7]} 26. Rcc7 {[%clk 0:00:38.4]}
26... Bxc7 {[%clk 0:00:28.3]} 27. Rxf8 {[%clk 0:00:33.6]} 27... Rxf8 {[%clk
0:00:30.2]} 28. Qxf8 {[%clk 0:00:34.2]} 28... Qf4+ {[%clk 0:00:31.8]} 0-1

[Event "*** Titled Tuesday Blitz"]
[Site "Chess.com"]
[Date "2018.08.07"]
[Round "7"]
[White "Drags95"]
[Black "KamilPlichta"]
[Result "1-0"]
[WhiteElo "2629"]
[BlackElo "2602"]
[TimeControl "180+2"]
[EndTime "14:32:35 PDT"]
[Termination "Drags95 won by resignation"]

1. Nf3 {[%clk 0:03:01.6]} 1... g6 {[%clk 0:02:58.6]} 2. g3 {[%clk 0:02:59.2]}
2... Bg7 {[%clk 0:03:00]} 3. Bg2 {[%clk 0:03:01.1]} 3... d6 {[%clk 0:03:01.4]}
4. O-O {[%clk 0:03:02.6]} 4... Bd7 {[%clk 0:03:03]} 5. d4 {[%clk 0:03:01.3]}
5... Qc8 {[%clk 0:03:04.4]} 6. c4 {[%clk 0:02:59.6]} 6... Bh3 {[%clk 0:03:05.5]}
7. Nc3 {[%clk 0:02:34.2]} 7... h5 {[%clk 0:03:06.3]} 8. Bg5 {[%clk 0:02:32.1]}
8... f6 {[%clk 0:03:06.5]} 9. Bd2 {[%clk 0:02:31.9]} 9... h4 {[%clk 0:03:05.8]}
10. e4 {[%clk 0:02:31.3]} 10... hxg3 {[%clk 0:02:58.2]} 11. fxg3 {[%clk
0:01:56.1]} 11... Bxg2 {[%clk 0:02:58.8]} 12. Kxg2 {[%clk 0:01:58]} 12... Qh3+
{[%clk 0:02:58.4]} 13. Kg1 {[%clk 0:01:59.2]} 13... Nc6 {[%clk 0:02:58.6]} 14.
Qe2 {[%clk 0:01:56.8]} 14... e5 {[%clk 0:02:35]} 15. d5 {[%clk 0:01:50.8]} 15...
Nce7 {[%clk 0:02:26.2]} 16. c5 {[%clk 0:01:52.2]} 16... a6 {[%clk 0:01:58.1]}
17. cxd6 {[%clk 0:01:36.8]} 17... cxd6 {[%clk 0:01:59]} 18. Na4 {[%clk
0:01:37.8]} 18... Nh6 {[%clk 0:01:56.9]} 19. Rac1 {[%clk 0:01:29]} 19... b5
{[%clk 0:01:28.3]} 20. Nc3 {[%clk 0:01:22.2]} 20... O-O {[%clk 0:01:29.4]} 21.
Nd1 {[%clk 0:01:20.3]} 21... Rfc8 {[%clk 0:01:28.6]} 22. Nf2 {[%clk 0:01:19.3]}
22... Qd7 {[%clk 0:01:29.5]} 23. Kg2 {[%clk 0:01:15.9]} 23... Nf7 {[%clk
0:01:30.3]} 24. Nh4 {[%clk 0:00:54]} 24... Bh6 {[%clk 0:01:25.5]} 25. Ng4 {[%clk
0:00:50.9]} 25... Bg7 {[%clk 0:01:15.9]} 26. Nxf6+ {[%clk 0:00:47.4]} 26... Bxf6
{[%clk 0:01:16.9]} 27. Rxf6 {[%clk 0:00:49.3]} 27... Rxc1 {[%clk 0:01:18.2]} 28.
Bxc1 {[%clk 0:00:49.8]} 28... Kg7 {[%clk 0:01:19.8]} 29. Rf2 {[%clk 0:00:36.6]}
29... Rc8 {[%clk 0:01:20.1]} 30. Qf3 {[%clk 0:00:34.6]} 30... Ng8 {[%clk
0:01:18.9]} 31. Be3 {[%clk 0:00:34.2]} 31... Rc4 {[%clk 0:01:07.5]} 32. Bd2
{[%clk 0:00:23.6]} 32... Qe7 {[%clk 0:01:03.7]} 33. Qg4 {[%clk 0:00:18.6]} 1-0

[Event "*** Titled Tuesday Blitz"]
[Site "Chess.com"]
[Date "2018.08.07"]
[Round "7"]
[White "JonahWillow"]
[Black "PaulfromSPb"]
[Result "1-0"]
[WhiteElo "2681"]
[BlackElo "2575"]
[TimeControl "180+2"]
[EndTime "14:32:36 PDT"]
[Termination "JonahWillow won by resignation"]

1. e4 {[%clk 0:03:01.9]} 1... c5 {[%clk 0:03:00.4]} 2. Nf3 {[%clk 0:03:02.8]}
2... d6 {[%clk 0:03:00.9]} 3. d4 {[%clk 0:03:04.4]} 3... cxd4 {[%clk 0:03:02.1]}
4. Qxd4 {[%clk 0:03:06.3]} 4... a6 {[%clk 0:03:01.5]} 5. c4 {[%clk 0:02:55.8]}
5... Nc6 {[%clk 0:03:02.4]} 6. Qe3 {[%clk 0:02:56.7]} 6... g6 {[%clk 0:03:03.2]}
7. Be2 {[%clk 0:02:55.8]} 7... Bg7 {[%clk 0:03:03.5]} 8. h3 {[%clk 0:02:57.5]}
8... Nf6 {[%clk 0:03:03.9]} 9. O-O {[%clk 0:02:59.2]} 9... O-O {[%clk
0:03:03.9]} 10. Nc3 {[%clk 0:03:00.8]} 10... Nd7 {[%clk 0:03:04.3]} 11. Rd1
{[%clk 0:02:56.9]} 11... Nc5 {[%clk 0:03:05.1]} 12. Rb1 {[%clk 0:02:55.1]} 12...
f5 {[%clk 0:02:58.2]} 13. b4 {[%clk 0:02:54.6]} 13... Nxe4 {[%clk 0:02:57.2]}
14. Nxe4 {[%clk 0:02:53.1]} 14... fxe4 {[%clk 0:02:58.2]} 15. Ng5 {[%clk
0:02:54.8]} 15... e5 {[%clk 0:02:36.8]} 16. Qxe4 {[%clk 0:02:54.5]} 16... Nd4
{[%clk 0:02:12.9]} 17. Bd3 {[%clk 0:02:49.5]} 17... Qf6 {[%clk 0:02:05.8]} 18.
Be3 {[%clk 0:02:39]} 18... Kh8 {[%clk 0:01:59.3]} 19. Bxd4 {[%clk 0:02:23.3]}
19... exd4 {[%clk 0:01:33.3]} 20. Qh4 {[%clk 0:02:20.4]} 20... h6 {[%clk
0:01:17.3]} 21. Nf3 {[%clk 0:02:21.1]} 21... g5 {[%clk 0:01:09.3]} 22. Qe4
{[%clk 0:02:18.5]} 22... Bf5 {[%clk 0:00:57.7]} 23. Qxf5 {[%clk 0:02:19.5]}
23... Qxf5 {[%clk 0:00:59.6]} 24. Bxf5 {[%clk 0:02:21.4]} 24... Rxf5 {[%clk
0:01:00.8]} 25. Nxd4 {[%clk 0:02:23.1]} 25... Re5 {[%clk 0:00:54.2]} 26. Nf3
{[%clk 0:02:17.9]} 26... Re4 {[%clk 0:00:55.1]} 27. Rxd6 {[%clk 0:02:16.5]}
27... Rxc4 {[%clk 0:00:55.6]} 28. Rd7 {[%clk 0:02:11]} 28... b5 {[%clk
0:00:54.5]} 29. Re1 {[%clk 0:01:48.6]} 29... Rxb4 {[%clk 0:00:48.6]} 30. Ree7
{[%clk 0:01:49.5]} 30... Bf8 {[%clk 0:00:49.6]} 31. Rh7+ {[%clk 0:01:45.8]}
31... Kg8 {[%clk 0:00:50.6]} 32. Ne5 {[%clk 0:01:38.4]} 32... Re8 {[%clk
0:00:43.5]} 33. Ng6 {[%clk 0:01:25.3]} 33... Re1+ {[%clk 0:00:20]} 34. Kh2
{[%clk 0:01:25.3]} 34... Bd6+ {[%clk 0:00:21]} 35. g3 {[%clk 0:01:23.2]} 35...
Bxg3+ {[%clk 0:00:11.6]} 36. Kxg3 {[%clk 0:01:19.6]} 36... Rg1+ {[%clk
0:00:11.8]} 37. Kh2 {[%clk 0:01:20.3]} 1-0

[Event "*** Titled Tuesday Blitz"]
[Site "Chess.com"]
[Date "2018.08.07"]
[Round "7"]
[White "nonscitis"]
[Black "orrbaverlekszarnyon"]
[Result "1-0"]
[WhiteElo "2451"]
[BlackElo "2271"]
[TimeControl "180+2"]
[EndTime "14:32:36 PDT"]
[Termination "nonscitis won on time"]

1. Nf3 {[%clk 0:02:59.4]} 1... c5 {[%clk 0:02:58.5]} 2. d4 {[%clk 0:03:01.1]}
2... cxd4 {[%clk 0:02:54.6]} 3. Nxd4 {[%clk 0:03:01.4]} 3... Nc6 {[%clk
0:02:56.5]} 4. e4 {[%clk 0:03:00.8]} 4... d6 {[%clk 0:02:53.9]} 5. Nc3 {[%clk
0:02:55.6]} 5... Nf6 {[%clk 0:02:54.2]} 6. Bg5 {[%clk 0:02:49.1]} 6... Qa5
{[%clk 0:02:52.4]} 7. Bxf6 {[%clk 0:02:45.9]} 7... gxf6 {[%clk 0:02:54.3]} 8.
Nb3 {[%clk 0:02:44.1]} 8... Qd8 {[%clk 0:02:44]} 9. Qh5 {[%clk 0:02:35.5]} 9...
Be6 {[%clk 0:02:43.2]} 10. O-O-O {[%clk 0:02:34.7]} 10... a5 {[%clk 0:02:43.4]}
11. Bb5 {[%clk 0:02:34.4]} 11... Bg7 {[%clk 0:02:37.9]} 12. Rd3 {[%clk
0:02:30.8]} 12... Qb6 {[%clk 0:02:15.3]} 13. Rg3 {[%clk 0:02:14.6]} 13... Bf8
{[%clk 0:02:15.8]} 14. a4 {[%clk 0:02:09.1]} 14... Bxb3 {[%clk 0:01:53.1]} 15.
cxb3 {[%clk 0:02:09.1]} 15... O-O-O {[%clk 0:01:40.6]} 16. Qxf7 {[%clk
0:02:00.7]} 16... Qxf2 {[%clk 0:01:36.1]} 17. Kb1 {[%clk 0:02:00.8]} 17... Nb4
{[%clk 0:01:17.2]} 18. Bd3 {[%clk 0:01:23.5]} 18... h5 {[%clk 0:00:42.5]} 19.
Nb5 {[%clk 0:01:17.8]} 19... Nxd3 {[%clk 0:00:28]} 20. Rxd3 {[%clk 0:01:16.8]}
20... Qxg2 {[%clk 0:00:28.7]} 21. Rc1+ {[%clk 0:01:03.8]} 21... Kb8 {[%clk
0:00:16.6]} 22. Rxd6 {[%clk 0:01:03.9]} 22... Qxe4+ {[%clk 0:00:15.7]} 23. Ka2
{[%clk 0:00:59.6]} 23... Bh6 {[%clk 0:00:14.4]} 24. Rc7 {[%clk 0:00:52]} 24...
Bf4 {[%clk 0:00:10.1]} 25. Rxe7 {[%clk 0:00:46.5]} 25... Qh1 {[%clk 0:00:04.2]}
26. Rb6 {[%clk 0:00:40.5]} 1-0

[Event "*** Titled Tuesday Blitz"]
[Site "Chess.com"]
[Date "2018.08.07"]
[Round "7"]
[White "JozefKneht"]
[Black "FairChess_on_YouTube"]
[Result "0-1"]
[WhiteElo "2349"]
[BlackElo "2955"]
[TimeControl "180+2"]
[EndTime "14:32:37 PDT"]
[Termination "FairChess_on_YouTube won by resignation"]

1. d4 {[%clk 0:03:01.9]} 1... Nf6 {[%clk 0:03:00]} 2. Bf4 {[%clk 0:03:00.7]}
2... c5 {[%clk 0:02:58.9]} 3. e3 {[%clk 0:03:00.5]} 3... g6 {[%clk 0:02:57.7]}
4. Nf3 {[%clk 0:02:59.4]} 4... Bg7 {[%clk 0:02:58.7]} 5. c3 {[%clk 0:02:55.7]}
5... b6 {[%clk 0:02:58.9]} 6. h3 {[%clk 0:02:54.9]} 6... O-O {[%clk 0:02:57.9]}
7. Bh2 {[%clk 0:02:49.3]} 7... Bb7 {[%clk 0:02:57.4]} 8. Bd3 {[%clk 0:02:45.9]}
8... d6 {[%clk 0:02:58.5]} 9. O-O {[%clk 0:02:44]} 9... Nc6 {[%clk 0:02:57.8]}
10. Nbd2 {[%clk 0:02:38.6]} 10... Re8 {[%clk 0:02:52.9]} 11. a4 {[%clk
0:02:27.6]} 11... e5 {[%clk 0:02:52]} 12. dxe5 {[%clk 0:02:25.9]} 12... dxe5
{[%clk 0:02:53.1]} 13. Qc2 {[%clk 0:02:07.3]} 13... e4 {[%clk 0:02:47.1]} 14.
Nxe4 {[%clk 0:02:05.5]} 14... Nxe4 {[%clk 0:02:46.6]} 15. Bxe4 {[%clk
0:02:07.4]} 15... Nd4 {[%clk 0:02:25.3]} 16. cxd4 {[%clk 0:01:32.2]} 16... Bxe4
{[%clk 0:02:25.9]} 17. Qe2 {[%clk 0:01:32.5]} 17... cxd4 {[%clk 0:02:22.9]} 18.
exd4 {[%clk 0:01:19.3]} 18... Qd5 {[%clk 0:02:08.9]} 19. Rfe1 {[%clk 0:01:17.6]}
19... Re6 {[%clk 0:02:09.2]} 20. Qe3 {[%clk 0:01:03.5]} 20... Rae8 {[%clk
0:02:05.2]} 21. Ng5 {[%clk 0:01:01.6]} 21... R6e7 {[%clk 0:01:45.5]} 22. Nxe4
{[%clk 0:00:59.4]} 22... Rxe4 {[%clk 0:01:46]} 23. Qd2 {[%clk 0:00:58.2]} 23...
Qxd4 {[%clk 0:01:36.2]} 24. Rxe4 {[%clk 0:00:45.8]} 24... Rxe4 {[%clk
0:01:38.1]} 25. Qxd4 {[%clk 0:00:45.9]} 25... Bxd4 {[%clk 0:01:39.7]} 26. Rb1
{[%clk 0:00:29.8]} 26... Re2 {[%clk 0:01:39.8]} 27. Bg3 {[%clk 0:00:30.4]} 27...
Rxb2 {[%clk 0:01:39.7]} 28. Rd1 {[%clk 0:00:29.4]} 28... Rb4 {[%clk 0:01:37.8]}
29. a5 {[%clk 0:00:27.8]} 29... bxa5 {[%clk 0:01:36.2]} 30. Kf1 {[%clk
0:00:25.8]} 30... a4 {[%clk 0:01:33.1]} 31. Rd3 {[%clk 0:00:24.1]} 31... f5
{[%clk 0:01:25]} 32. h4 {[%clk 0:00:21.9]} 32... Kf7 {[%clk 0:01:23]} 33. Bd6
{[%clk 0:00:19.8]} 33... Rb1+ {[%clk 0:01:15.3]} 34. Ke2 {[%clk 0:00:20]} 34...
Rb2+ {[%clk 0:01:16.8]} 35. Rd2 {[%clk 0:00:19.9]} 35... Rxd2+ {[%clk
0:01:16.8]} 36. Kxd2 {[%clk 0:00:21.8]} 36... Bxf2 {[%clk 0:01:17.7]} 37. h5
{[%clk 0:00:23.5]} 37... Ke6 {[%clk 0:01:17.6]} 38. g4 {[%clk 0:00:24.6]} 38...
Kxd6 {[%clk 0:01:17.5]} 39. gxf5 {[%clk 0:00:26.5]} 39... gxf5 {[%clk 0:01:18]}
40. h6 {[%clk 0:00:28.4]} 0-1